fUSD/lending_fUSD_20240616
["ID","MTS","AMOUNT","RATE_DAILY","PERIOD"]
[329609448,1718502658282,-540.79,0.00021917,2]
[329609449,1718502658296,-500.0,0.00021917,2]
[329609450,1718502658311,-506.02404319,0.00021917,2]
[329609451,1718502658325,-500.0,0.00021917,2]
[329609452,1718502658368,-1000.04,0.00021917,2]
[329609453,1718502658396,-500.0,0.00021917,2]
[329609454,1718502658421,-500.0,0.00021917,2]
[329609455,1718502658457,-500.0,0.00021917,2]
[329609456,1718502658488,-500.0,0.00021917,2]
[329609457,1718502658499,-500.0,0.00021917,2]
[329609458,1718502658511,-1009.28,0.00021917,2]
[329609459,1718502658522,-500.0,0.00021917,2]
[329609460,1718502658533,-500.0,0.00021917,2]
[329609461,1718502658560,-643.83397577,0.00021917,2]
[329609462,1718502658571,-500.0,0.00021917,2]
[329609463,1718502658587,-309.92590527,0.00021917,2]
[329609464,1718502658604,-500.0,0.00021917,2]
[329609465,1718502658619,-1414.68,0.00021917,2]
[329609466,1718502658630,-504.94467923,0.00021917,2]
[329609467,1718502658645,-500.0,0.00021917,2]
[329609468,1718502658657,-500.0,0.00021917,2]
[329609469,1718502658669,-713.21,0.00021917,2]
[329609470,1718502658680,-997.24,0.00021917,2]
[329609471,1718502658700,-500.0,0.00021917,2]
[329609472,1718502658740,-500.0,0.00021917,2]
[329609473,1718502658760,-225.69241939,0.00021917,2]
[329609474,1718502658772,-500.0,0.00021917,2]
[329609475,1718502658785,-500.0,0.00021917,2]
[329609476,1718502658801,-583.81,0.00021917,2]
[329609477,1718502658812,-694.6,0.00021917,2]
[329609478,1718502658830,-500.0,0.00021917,2]
[329609479,1718502658861,-500.0,0.00021917,2]
[329609480,1718502658876,-500.0,0.00021917,2]
[329609481,1718502658887,-500.0,0.00021917,2]
[329609482,1718502658901,-718.57,0.00021917,2]
[329609483,1718502658911,-1016.26,0.00021917,2]
[329609484,1718502658922,-500.0,0.00021917,2]
[329609485,1718502658935,-500.0,0.00021917,2]
[329609486,1718502658949,-500.0,0.00021917,2]
[329609487,1718502658968,-1000.0,0.00021917,2]
[329609488,1718502658983,-500.0,0.00021917,2]
[329609489,1718502659000,-500.0,0.00021917,2]
[329609490,1718502659013,-500.0,0.00021917,2]
[329609491,1718502659023,-500.0,0.00021917,2]
[329609492,1718502659050,-500.0,0.00021917,2]
[329609493,1718502659065,-521.47,0.00021917,2]
[329609494,1718502659086,-500.0,0.00021917,2]
[329609495,1718502659098,-500.0,0.00021917,2]
[329609496,1718502659109,-500.0,0.00021917,2]
[329609497,1718502659120,-1402.91,0.00021917,2]
[329609498,1718502659137,-500.0,0.00021917,2]
[329609499,1718502659154,-500.0,0.00021917,2]
[329609500,1718502659166,-500.0,0.00021917,2]
[329609501,1718502659178,-500.0,0.00021917,2]
[329609502,1718502659191,-500.0,0.00021917,2]
[329609503,1718502659208,-500.0,0.00021917,2]
[329609504,1718502659234,-500.0,0.00021917,2]
[329609505,1718502659246,-500.0,0.00021917,2]
[329609506,1718502659266,-500.0,0.00021917,2]
[329609507,1718502659297,-1375.3,0.00021917,2]
[329609508,1718502659312,-801.29,0.00021917,2]
[329609509,1718502659324,-503.65324902,0.00021917,2]
[329609510,1718502659344,-500.0,0.00021917,2]
[329609511,1718502659357,-500.0,0.00021917,2]
[329609512,1718502659369,-20000.0,0.00021917,2]
[329609513,1718502659393,-500.0,0.00021917,2]
[329609514,1718502659408,-500.0,0.00021917,2]
[329609515,1718502659419,-875.08,0.00021917,2]
[329609516,1718502659430,-500.0,0.00021917,2]
[329609517,1718502659447,-500.0,0.00021917,2]
[329609518,1718502659465,-584.2,0.00021917,2]
[329609519,1718502659484,-500.0,0.00021917,2]
[329609520,1718502659517,-500.0,0.00021917,2]
[329609521,1718502659531,-1162.45,0.00021917,2]
[329609522,1718502659552,-500.0,0.00021917,2]
[329609523,1718502659573,-500.0,0.00021917,2]
[329609524,1718502659589,-500.0,0.00021917,2]
[329609525,1718502659603,-744.58,0.00021917,2]
[329609526,1718502659618,-740.05,0.00021917,2]
[329609527,1718502659647,-500.0,0.00021917,2]
[329609528,1718502659666,-633.87,0.00021917,2]
[329609529,1718502659679,-500.0,0.00021917,2]
[329609530,1718502659715,-500.0,0.00021917,2]
[329609531,1718502659729,-750.84,0.00021917,2]
[329609532,1718502659740,-500.0,0.00021917,2]
[329609533,1718502659758,-500.0,0.00021917,2]
[329609534,1718502659772,-1125.82,0.00021917,2]
[329609535,1718502659786,-500.0,0.00021917,2]
[329609536,1718502659832,-500.0,0.00021917,2]
[329609537,1718502659881,-500.0,0.00021917,2]
[329609538,1718502659940,-500.0,0.00021917,2]
[329609539,1718502659975,-603.54,0.00021917,2]
[329609540,1718502659997,-500.0,0.00021917,2]
[329609541,1718502660013,-524.12633435,0.00021917,2]
[329609542,1718502660030,-500.0,0.00021917,2]
[329609543,1718502660045,-603.4378477,0.00021917,2]
[329609544,1718502660056,-1239.69,0.00021917,2]
[329609545,1718502660074,-1213.85,0.00021917,2]
[329609546,1718502660098,-500.0,0.00021917,2]
[329609547,1718502660112,-500.0,0.00021917,2]
[329609548,1718502660136,-500.0,0.00021917,2]
[329609549,1718502660148,-500.0,0.00021917,2]
[329609550,1718502660166,-500.0,0.00021917,2]
[329609551,1718502660191,-500.0,0.00021917,2]
[329609552,1718502660234,-500.0,0.00021917,2]
[329609553,1718502660247,-500.0,0.00021917,2]
[329609554,1718502660262,-500.0,0.00021917,2]
[329609555,1718502660274,-500.0,0.00021917,2]
[329609556,1718502660288,-500.0,0.00021917,2]
[329609557,1718502660299,-500.0,0.00021917,2]
[329609558,1718502660315,-195.05773668,0.00021917,2]
[329609559,1718502660353,-500.0,0.00021917,2]
[329609560,1718502660368,-500.0,0.00021917,2]
[329609561,1718502660392,-500.0,0.00021917,2]
[329609562,1718502660420,-827.13,0.00021917,2]
[329609563,1718502660436,-500.0,0.00021917,2]
[329609564,1718502660468,-500.0,0.00021917,2]
[329609565,1718502660486,-500.0,0.00021917,2]
[329609566,1718502660517,-502.77830043,0.00021917,2]
[329609567,1718502660538,-500.0,0.00021917,2]
[329609568,1718502660569,-500.0,0.00021917,2]
[329609569,1718502660580,-500.0,0.00021917,2]
[329609570,1718502660613,-547.47509981,0.00021917,2]
[329609571,1718502660639,-500.0,0.00021917,2]
[329609572,1718502660650,-500.0,0.00021917,2]
[329609573,1718502660663,-500.0,0.00021917,2]
[329609574,1718502660680,-500.0,0.00021917,2]
[329609575,1718502660721,-500.0,0.00021917,2]
[329609576,1718502660736,-950.85,0.00021917,2]
[329609577,1718502660749,-500.0,0.00021917,2]
[329609578,1718502660777,-426.72609275,0.00021917,2]
[329609579,1718502660797,-1070.34,0.00021917,2]
[329609580,1718502660811,-500.0,0.00021917,2]
[329609581,1718502660842,-500.0,0.00021917,2]
[329609582,1718502660885,-500.0,0.00021917,2]
[329609583,1718502660921,-306.24694828,0.00021917,2]
[329609584,1718502660935,-500.0,0.00021917,2]
[329609585,1718502660975,-500.0,0.00021917,2]
[329609586,1718502660987,-500.0,0.00021917,2]
[329609587,1718502661036,-500.0,0.00021917,2]
[329609588,1718502661088,-500.0,0.00021917,2]
[329609589,1718502661101,-722.67,0.00021917,2]
[329609590,1718502661117,-500.0,0.00021917,2]
[329609591,1718502661128,-510.31698999,0.00021917,2]
[329609592,1718502661140,-517.7729774,0.00021917,2]
[329609593,1718502661159,-500.0,0.00021917,2]
[329609594,1718502661178,-500.0,0.00021917,2]
[329609595,1718502661205,-500.0,0.00021917,2]
[329609596,1718502661220,-500.0,0.00021917,2]
[329609597,1718502661235,-500.0,0.00021917,2]
[329609598,1718502661247,-500.0,0.00021917,2]
[329609599,1718502661264,-500.0,0.00021917,2]
[329609600,1718502661280,-500.0,0.00021917,2]
[329609601,1718502661293,-500.0,0.00021917,2]
[329609602,1718502661310,-500.0,0.00021917,2]
[329609603,1718502661324,-500.0,0.00021917,2]
[329609604,1718502661339,-717.85,0.00021917,2]
[329609605,1718502661366,-500.0,0.00021917,2]
[329609606,1718502661380,-797.64,0.00021917,2]
[329609607,1718502661391,-581.20500465,0.00021917,2]
[329609608,1718502661407,-500.0,0.00021917,2]
[329609609,1718502661424,-500.0,0.00021917,2]
[329609610,1718502661435,-1011.39,0.00021917,2]
[329609611,1718502661446,-500.0,0.00021917,2]
[329609612,1718502661461,-500.0,0.00021917,2]
[329609613,1718502661492,-727.59,0.00021917,2]
[329609614,1718502661508,-500.0,0.00021917,2]
[329609615,1718502661535,-500.0,0.00021917,2]
[329609616,1718502661567,-500.0,0.00021917,2]
[329609617,1718502661579,-500.0,0.00021917,2]
[329609618,1718502661590,-520.01953495,0.00021917,2]
[329609619,1718502661601,-684.48,0.00021917,2]
[329609620,1718502661612,-500.0,0.00021917,2]
[329609621,1718502661628,-634.85,0.00021917,2]
[329609622,1718502661640,-500.0,0.00021917,2]
[329609623,1718502661656,-500.0,0.00021917,2]
[329609624,1718502661669,-500.0,0.00021917,2]
[329609625,1718502661690,-500.0,0.00021917,2]
[329609626,1718502661722,-410.96162347,0.00021917,2]
[329609627,1718502661737,-513.24,0.00021917,2]
[329609628,1718502661753,-500.0,0.00021917,2]
[329609629,1718502661961,-500.0,0.00021917,2]
[329609630,1718502662041,-799.09,0.00021917,2]
[329609631,1718502662057,-858.01,0.00021917,2]
[329609632,1718502662074,-500.0,0.00021917,2]
[329609633,1718502662093,-500.0,0.00021917,2]
[329609634,1718502662108,-500.0,0.00021917,2]
[329609635,1718502662120,-500.0,0.00021917,2]
[329609636,1718502662152,-500.0,0.00021917,2]
[329609637,1718502662174,-500.0,0.00021917,2]
[329609638,1718502662185,-500.0,0.00021917,2]
[329609639,1718502662198,-500.0,0.00021917,2]
[329609640,1718502662220,-500.0,0.00021917,2]
[329609641,1718502662239,-500.0,0.00021917,2]
[329609642,1718502662258,-642.99,0.00021917,2]
[329609643,1718502662273,-500.0,0.00021917,2]
[329609644,1718502662287,-500.0,0.00021917,2]
[329609645,1718502662300,-500.0,0.00021917,2]
[329609646,1718502662312,-500.0,0.00021917,2]
[329609647,1718502662338,-500.0,0.00021917,2]
[329609648,1718502662351,-500.0,0.00021917,2]
[329609649,1718502662373,-500.0,0.00021917,2]
[329609650,1718502662391,-500.0,0.00021917,2]
[329609651,1718502662409,-500.0,0.00021917,2]
[329609652,1718502662426,-1555.64,0.00021917,2]
[329609653,1718502662467,-500.0,0.00021917,2]
[329609654,1718502662481,-500.0,0.00021917,2]
[329609655,1718502662508,-500.0,0.00021917,2]
[329609656,1718502662536,-500.0,0.00021917,2]
[329609657,1718502662555,-500.0,0.00021917,2]
[329609658,1718502662577,-500.0,0.00021917,2]
[329609659,1718502662593,-500.0,0.00021917,2]
[329609660,1718502662613,-500.0,0.00021917,2]
[329609661,1718502662649,-642.73,0.00021917,2]
[329609662,1718502662667,-500.0,0.00021917,2]
[329609663,1718502662688,-876.15,0.00021917,2]
[329609664,1718502662707,-505.66522223,0.00021917,2]
[329609665,1718502662723,-500.0,0.00021917,2]
[329609666,1718502662752,-500.0,0.00021917,2]
[329609667,1718502662764,-500.0,0.00021917,2]
[329609668,1718502662775,-500.0,0.00021917,2]
[329609669,1718502662789,-500.0,0.00021917,2]
[329609670,1718502662823,-500.0,0.00021917,2]
[329609671,1718502662839,-500.0,0.00021917,2]
[329609672,1718502662850,-500.0,0.00021917,2]
[329609673,1718502662874,-559.66,0.00021917,2]
[329609674,1718502662889,-500.0,0.00021917,2]
[329609675,1718502662915,-1222.29,0.00021917,2]
[329609676,1718502662940,-500.0,0.00021917,2]
[329609677,1718502662963,-594.5,0.00021917,2]
[329609678,1718502662985,-500.0,0.00021917,2]
[329609679,1718502663004,-500.0,0.00021917,2]
[329609680,1718502663029,-500.0,0.00021917,2]
[329609681,1718502663084,-500.0,0.00021917,2]
[329609682,1718502663112,-795.76,0.00021917,2]
[329609683,1718502663125,-500.0,0.00021917,2]
[329609684,1718502663138,-500.0,0.00021917,2]
[329609685,1718502663149,-500.0,0.00021917,2]
[329609686,1718502663162,-500.0,0.00021917,2]
[329609687,1718502663180,-500.0,0.00021917,2]
[329609688,1718502663216,-500.0,0.00021917,2]
[329609689,1718502663234,-500.0,0.00021917,2]
[329609690,1718502663266,-500.0,0.00021917,2]
[329609691,1718502663294,-500.0,0.00021917,2]
[329609692,1718502663327,-500.0,0.00021917,2]
[329609693,1718502663365,-500.0,0.00021917,2]
[329609694,1718502663383,-500.0,0.00021917,2]
[329609695,1718502663394,-500.0,0.00021917,2]
[329609696,1718502663407,-500.0,0.00021917,2]
[329609697,1718502663421,-500.0,0.00021917,2]
[329609698,1718502663434,-500.0,0.00021917,2]
[329609699,1718502663457,-504.99017903,0.00021917,2]
[329609700,1718502663476,-500.0,0.00021917,2]
[329609701,1718502663494,-665.26,0.00021917,2]
[329609702,1718502663506,-500.0,0.00021917,2]
[329609703,1718502663533,-500.0,0.00021917,2]
[329609704,1718502663544,-500.0,0.00021917,2]
[329609705,1718502663580,-1095.13,0.00021917,2]
[329609706,1718502663593,-630.7,0.00021917,2]
[329609707,1718502663605,-622.66,0.00021917,2]
[329609708,1718502663620,-500.0,0.00021917,2]
[329609709,1718502663633,-1215.64,0.00021917,2]
[329609710,1718502663674,-500.0,0.00021917,2]
[329609711,1718502663687,-1215.64,0.00021917,2]
[329609712,1718502663736,-1215.64,0.00021917,2]
[329609713,1718502663783,-1215.64,0.00021917,2]
[329609714,1718502663804,-500.0,0.00021917,2]
[329609715,1718502663816,-595.03,0.00021917,2]
[329609716,1718502663829,-500.0,0.00021917,2]
[329609717,1718502663842,-500.0,0.00021917,2]
[329609718,1718502663864,-500.0,0.00021917,2]
[329609719,1718502663875,-500.0,0.00021917,2]
[329609720,1718502663922,-500.0,0.00021917,2]
[329609721,1718502663951,-500.0,0.00021917,2]
[329609722,1718502663978,-500.0,0.00021917,2]
[329609723,1718502664007,-500.0,0.00021917,2]
[329609724,1718502664045,-580.87626159,0.00021917,2]
[329609725,1718502664065,-500.0,0.00021917,2]
[329609726,1718502664079,-500.0,0.00021917,2]
[329609727,1718502664093,-500.0,0.00021917,2]
[329609728,1718502664123,-500.0,0.00021917,2]
[329609729,1718502664136,-500.0,0.00021917,2]
[329609730,1718502664152,-500.0,0.00021917,2]
[329609731,1718502664165,-500.0,0.00021917,2]
[329609732,1718502664177,-500.0,0.00021917,2]
[329609733,1718502664191,-500.0,0.00021917,2]
[329609734,1718502664203,-500.0,0.00021917,2]
[329609735,1718502664215,-620.24,0.00021917,2]
[329609736,1718502664231,-500.0,0.00021917,2]
[329609737,1718502664245,-602.26,0.00021917,2]
[329609738,1718502664264,-500.0,0.00021917,2]
[329609739,1718502664288,-285.26816391,0.00021917,2]
[329609740,1718502664299,-500.0,0.00021917,2]
[329609741,1718502664311,-500.0,0.00021917,2]
[329609742,1718502664326,-500.0,0.00021917,2]
[329609743,1718502664376,-500.0,0.00021917,2]
[329609744,1718502664400,-500.0,0.00021917,2]
[329609745,1718502664419,-500.0,0.00021917,2]
[329609746,1718502664441,-500.0,0.00021917,2]
[329609747,1718502664452,-500.0,0.00021917,2]
[329609748,1718502664465,-893.63,0.00021917,2]
[329609749,1718502664484,-500.0,0.00021917,2]
[329609750,1718502664502,-500.0,0.00021917,2]
[329609751,1718502664513,-500.0,0.00021917,2]
[329609752,1718502664525,-547.73,0.00021917,2]
[329609753,1718502664543,-1216.53,0.00021917,2]
[329609754,1718502664556,-500.0,0.00021917,2]
[329609755,1718502664572,-500.0,0.00021917,2]
[329609756,1718502664597,-500.0,0.00021917,2]
[329609757,1718502664611,-500.0,0.00021917,2]
[329609758,1718502664630,-500.0,0.00021917,2]
[329609759,1718502664648,-500.0,0.00021917,2]
[329609760,1718502664665,-500.0,0.00021917,2]
[329609761,1718502664681,-500.0,0.00021917,2]
[329609762,1718502664700,-250.26137361,0.00021917,2]
[329609763,1718502664712,-500.0,0.00021917,2]
[329609764,1718502664737,-500.0,0.00021917,2]
[329609765,1718502664757,-500.0,0.00021917,2]
[329609766,1718502664768,-500.0,0.00021917,2]
[329609767,1718502664781,-500.0,0.00021917,2]
[329609768,1718502664794,-647.88,0.00021917,2]
[329609769,1718502664815,-500.0,0.00021917,2]
[329609770,1718502664832,-846.37,0.00021917,2]
[329609771,1718502664856,-500.0,0.00021917,2]
[329609772,1718502664880,-500.0,0.00021917,2]
[329609773,1718502664897,-1111.06,0.00021917,2]
[329609774,1718502664912,-500.0,0.00021917,2]
[329609775,1718502664927,-500.0,0.00021917,2]
[329609776,1718502664943,-500.0,0.00021917,2]
[329609777,1718502664963,-500.0,0.00021917,2]
[329609778,1718502664982,-500.0,0.00021917,2]
[329609779,1718502664994,-395.64698044,0.00021917,2]
[329609780,1718502665012,-500.0,0.00021917,2]
[329609781,1718502665024,-513.16807364,0.00021917,2]
[329609782,1718502665037,-595.67747807,0.00021917,2]
[329609783,1718502665055,-500.0,0.00021917,2]
[329609784,1718502665068,-500.0,0.00021917,2]
[329609785,1718502665080,-500.0,0.00021917,2]
[329609786,1718502665095,-500.0,0.00021917,2]
[329609787,1718502665107,-500.0,0.00021917,2]
[329609788,1718502665118,-736.76,0.00021917,2]
[329609789,1718502665130,-500.0,0.00021917,2]
[329609790,1718502665159,-500.0,0.00021917,2]
[329609791,1718502665179,-500.0,0.00021917,2]
[329609792,1718502665192,-500.0,0.00021917,2]
[329609793,1718502665203,-500.0,0.00021917,2]
[329609794,1718502665220,-749.78,0.00021917,2]
[329609795,1718502665238,-500.0,0.00021917,2]
[329609796,1718502665261,-500.0,0.00021917,2]
[329609797,1718502665273,-500.0,0.00021917,2]
[329609798,1718502665284,-500.0,0.00021917,2]
[329609799,1718502665298,-500.0,0.00021917,2]
[329609800,1718502665320,-500.0,0.00021917,2]
[329609801,1718502665350,-500.0,0.00021917,2]
[329609802,1718502665366,-500.0,0.00021917,2]
[329609803,1718502665378,-500.0,0.00021917,2]
[329609804,1718502665392,-500.0,0.00021917,2]
[329609805,1718502665413,-500.0,0.00021917,2]
[329609806,1718502665424,-524.62181067,0.00021917,2]
[329609807,1718502665435,-500.0,0.00021917,2]
[329609808,1718502665450,-500.0,0.00021917,2]
[329609809,1718502665472,-500.0,0.00021917,2]
[329609810,1718502665486,-609.58,0.00021917,2]
[329609811,1718502665502,-500.0,0.00021917,2]
[329609812,1718502665517,-500.0,0.00021917,2]
[329609813,1718502665543,-2042.7,0.00021917,2]
[329609814,1718502665569,-500.0,0.00021917,2]
[329609815,1718502665581,-500.0,0.00021917,2]
[329609816,1718502665593,-586.76833887,0.00021917,2]
[329609817,1718502665605,-546.37,0.00021917,2]
[329609818,1718502665654,-506.78410016,0.00021917,2]
[329609819,1718502665667,-500.0,0.00021917,2]
[329609820,1718502665712,-500.0,0.00021917,2]
[329609821,1718502665723,-500.0,0.00021917,2]
[329609822,1718502665737,-250.0,0.00021917,2]
[329609823,1718502665750,-513.23473415,0.00021917,2]
[329609824,1718502665761,-500.0,0.00021917,2]
[329609825,1718502665771,-500.0,0.00021917,2]
[329609826,1718502665783,-500.0,0.00021917,2]
[329609827,1718502665794,-500.0,0.00021917,2]
[329609828,1718502665808,-500.0,0.00021917,2]
[329609829,1718502665819,-500.0,0.00021917,2]
[329609830,1718502665834,-500.0,0.00021917,2]
[329609831,1718502665845,-500.0,0.00021917,2]
[329609832,1718502665857,-500.0,0.00021917,2]
[329609833,1718502665890,-500.0,0.00021917,2]
[329609834,1718502665908,-500.0,0.00021917,2]
[329609835,1718502665925,-500.0,0.00021917,2]
[329609836,1718502665945,-500.0,0.00021917,2]
[329609837,1718502665956,-500.0,0.00021917,2]
[329609838,1718502665970,-687.08,0.00021917,2]
[329609839,1718502665989,-500.0,0.00021917,2]
[329609840,1718502666003,-500.0,0.00021917,2]
[329609841,1718502666024,-500.0,0.00021917,2]
[329609842,1718502666036,-500.0,0.00021917,2]
[329609843,1718502666046,-500.0,0.00021917,2]
[329609844,1718502666062,-500.0,0.00021917,2]
[329609845,1718502666074,-500.0,0.00021917,2]
[329609846,1718502666085,-446.82928017,0.00021917,2]
[329609847,1718502666095,-500.0,0.00021917,2]
[329609848,1718502666106,-500.0,0.00021917,2]
[329609849,1718502666117,-500.0,0.00021917,2]
[329609850,1718502666128,-500.0,0.00021917,2]
[329609851,1718502666139,-400.7,0.00021917,2]
[329609852,1718502666149,-700.47,0.00021917,2]
[329609853,1718502666172,-542.87937888,0.00021917,2]
[329609854,1718502666183,-500.0,0.00021917,2]
[329609855,1718502666195,-500.0,0.00021917,2]
[329609856,1718502666207,-500.0,0.00021917,2]
[329609857,1718502666229,-500.0,0.00021917,2]
[329609858,1718502666249,-624.01,0.00021917,2]
[329609859,1718502666275,-513.27371986,0.00021917,2]
[329609860,1718502666293,-500.0,0.00021917,2]
[329609861,1718502666309,-500.0,0.00021917,2]
[329609862,1718502666322,-569.05580301,0.00021917,2]
[329609863,1718502666344,-500.0,0.00021917,2]
[329609864,1718502666357,-500.0,0.00021917,2]
[329609865,1718502666370,-500.0,0.00021917,2]
[329609866,1718502666412,-504.94371192,0.00021917,2]
[329609867,1718502666427,-500.0,0.00021917,2]
[329609868,1718502666446,-500.0,0.00021917,2]
[329609869,1718502666493,-246.62087598,0.00021917,2]
[329609870,1718502666540,-500.0,0.00021917,2]
[329609871,1718502666571,-505.35017852,0.00021917,2]
[329609872,1718502666584,-500.0,0.00021917,2]
[329609873,1718502666602,-500.0,0.00021917,2]
[329609874,1718502666625,-500.0,0.00021917,2]
[329609875,1718502666640,-500.0,0.00021917,2]
[329609876,1718502666718,-559.2,0.00021917,2]
[329609877,1718502666756,-703.6,0.00021917,2]
[329609878,1718502666780,-500.0,0.00021917,2]
[329609879,1718502666796,-500.0,0.00021917,2]
[329609880,1718502666817,-500.0,0.00021917,2]
[329609881,1718502666834,-500.0,0.00021917,2]
[329609882,1718502666845,-500.0,0.00021917,2]
[329609883,1718502666865,-500.0,0.00021917,2]
[329609884,1718502666881,-500.0,0.00021917,2]
[329609885,1718502666900,-134.52487844,0.00021917,2]
[329609886,1718502667787,-266.56206439,0.00021917,2]
[329609887,1718502673762,151.0,0.000273,60]
[329609888,1718502676312,263.53962881,0.000118,2]
[329609893,1718503091045,500.0,0.00026,120]
[329609894,1718503140158,639.9,0.00027,120]
[329609900,1718503626163,-943.17257402,0.00013882,2]
[329609901,1718503626195,-155.0,0.00013883,2]
[329609902,1718503626236,-3015.42872496,0.00013883,2]
[329609903,1718503653974,-1206.60530187,0.00013883,2]
[329609904,1718503746254,-2914.7596,0.00013886,2]
[329609905,1718503746304,-28125.44561776,0.00013886,2]
[329609917,1718503832539,-2536.29500803,0.00013886,2]
[329609918,1718503832553,-547.43728168,0.00013886,2]
[329609919,1718503832572,-1397.28597249,0.00013886,2]
[329609920,1718503832586,-23.90212464,0.00013888,2]
[329609921,1718503832600,-136.83702722,0.00013888,2]
[329609922,1718503832613,-421.31843472,0.00013983,2]
[329609923,1718503832644,-1266.60175907,0.00013983,2]
[329609924,1718503832675,-1282.0688577,0.00013983,2]
[329609925,1718503832699,-998.62828915,0.00013983,2]
[329609926,1718503832756,-480.89596165,0.00013983,2]
[329609927,1718503832769,-3770.0,0.00013984,2]
[329609928,1718503832788,-756.63902036,0.00013999,2]
[329609929,1718503832809,-1637.46800454,0.00014,2]
[329609930,1718503832823,-192.41218429,0.00014998,2]
[329609931,1718503832839,-377.44935172,0.00014998,2]
[329609932,1718503833187,-237.60722294,0.00014998,2]
[329609933,1718503833201,-223.78908034,0.00014998,2]
[329609934,1718503833214,-207.67221006,0.00014998,2]
[329609935,1718503833264,-155.21798349,0.00014998,2]
[329609936,1718503833286,-552.68483624,0.00014998,2]
[329609937,1718503833298,-155.43711295,0.00014998,2]
[329609938,1718503833314,-155.46646201,0.00014998,2]
[329609939,1718503833326,-155.67620291,0.00014998,2]
[329609940,1718503833356,-155.69643398,0.00014998,2]
[329609941,1718503833371,-653.74741891,0.00014998,2]
[329609942,1718503833397,-269.08545374,0.00014998,2]
[329609943,1718503833420,-1602.05202041,0.00014998,2]
[329609944,1718503833431,-2383.69339277,0.00014998,2]
[329609945,1718503833448,-1259.15475221,0.00014998,2]
[329609946,1718503833482,-476.77390419,0.00014998,2]
[329609947,1718503833493,-1633.9326251,0.00014998,2]
[329609948,1718503833513,-1603.00698771,0.00014998,2]
[329609949,1718503833533,-3116.64394428,0.00014998,2]
[329609950,1718503833550,-155.7012172,0.00014998,2]
[329609951,1718503833565,-336.01337835,0.00014998,2]
[329609952,1718503833578,-218.70336113,0.00014998,2]
[329609953,1718503833594,-189.9976226,0.00014998,2]
[329609954,1718503833607,-1072.9073024,0.00014998,2]
[329609955,1718503833617,-1225.46335304,0.00014998,2]
[329609956,1718503833631,-166.95451064,0.00014998,2]
[329609957,1718503833642,-278.23102295,0.00014998,2]
[329609958,1718503833656,-3797.65258083,0.00014998,2]
[329609959,1718503833683,-157.68788244,0.00014998,2]
[329609960,1718503833697,-161.27449471,0.00014998,2]
[329609961,1718503833718,-217.3393122,0.00014998,2]
[329609962,1718503833731,-327.91016322,0.00014998,2]
[329609963,1718503833750,-156.37497156,0.00014998,2]
[329609964,1718503833761,-157.81698767,0.00014998,2]
[329609965,1718503833774,-161.97378628,0.00014998,2]
[329609966,1718503833792,-181.45704427,0.00014998,2]
[329609967,1718503833825,-269.73885961,0.00014998,2]